bitfinex-derivatives/quotes_SOLF0:USTF0_20241218
["timestamp","ask_amount","ask_price","bid_price","bid_amount"]
[1734488790893,1.466,219.25,219.05,1.5607]
[1734488790894,10.7409621,219.25,219.16,2.74]
[1734488791198,1.5585,219.3,219.17,5.8021]
[1734488791696,6.99455739,219.3,219.24,2.2804]
[1734488791897,10.74418468,219.31,219.24,2.2804]
[1734488792196,10.74418468,219.31,219.25,2.2803]
[1734488792399,10.74418468,219.3,219.25,2.2803]
[1734488792592,10.74418468,219.29,219.25,2.2803]
[1734488792897,2.74,219.33,219.28,2.28]
[1734488793095,2.74,219.33,219.22,2.74]
[1734488793895,10.75169735,219.34,219.27,2.28]
[1734488794100,12.29699735,219.35,219.27,2.28]
[1734488794293,10.75169735,219.34,219.27,2.28]
[1734488794494,1.5453,219.35,219.27,2.28]
[1734488794495,10.75169735,219.33,219.27,2.28]
[1734488794696,10.75169735,219.32,219.27,2.28]
[1734488794892,1.4848,219.43,219.24,8.72978864]
[1734488795096,7.03471035,219.43,219.3,8.72978864]
[1734488795297,27.39586062,219.45,219.31,4.1632]
[1734488795498,27.39586062,219.45,219.35,2.2793]
[1734488795499,17.73090928,219.44,219.35,2.2793]
[1734488795691,6.99144563,219.43,219.35,2.2793]
[1734488796096,10.73946365,219.44,219.35,2.2793]
[1734488796292,10.73946365,219.43,219.33,8.72978864]
[1734488796492,3.0128,219.47,219.33,8.72978864]
[1734488797100,9.9942863,219.47,219.33,8.72978864]
[1734488797299,13.00345165,219.46,219.38,2.279]
[1734488797493,2.2782,219.46,219.38,2.279]
[1734488797693,2.2782,219.46,219.33,8.72978864]
[1734488797895,2.2782,219.46,219.37,2.2791]
[1734488798304,12.9902923,219.46,219.37,2.2791]
[1734488798503,5.2909,219.47,219.37,2.2791]
[1734488798701,5.2909,219.47,219.36,2.72]
[1734488799401,5.2909,219.47,219.38,2.2789]
[1734488799402,2.2782,219.46,219.38,2.2789]
[1734488799601,8.72978864,219.46,219.32,1.6017]
[1734488799800,3.0128,219.47,219.32,1.6017]
[1734488800902,3.0128,219.47,219.37,2.2791]
[1734488801703,3.0128,219.47,219.4,2.2787]
[1734488801998,1.5113,219.47,219.4,2.2787]
[1734488802804,1.5113,219.47,219.34,8.72978864]
[1734488803105,1.5113,219.47,219.34,11.44978864]
[1734488803904,2.2782,219.46,219.38,2.279]
[1734488804103,1.5113,219.47,219.34,11.44978864]
[1734488804406,1.5113,219.47,219.37,8.72978864]
[1734488805098,1.5113,219.47,219.41,2.2787]
[1734488806700,5.34617333,219.53,219.38,5.54422761]
[1734488807008,2.72,219.52,219.38,5.54422761]
[1734488807204,2.72,219.52,219.39,2.72]
[1734488807706,2.72,219.52,219.4,8.72978864]
[1734488808101,2.2778,219.5,219.43,2.2784]
[1734488808508,2.72,219.52,219.4,8.72978864]
[1734488808807,2.72,219.52,219.39,2.72]
[1734488808808,2.2774,219.54,219.43,8.72978864]
[1734488809011,8.72978864,219.61,219.46,8.72978864]
[1734488809207,2.72,219.6,219.47,2.72]
[1734488809409,2.277,219.57,219.5,2.2777]
[1734488809603,2.72,219.6,219.47,2.72]
[1734488809807,2.72,219.6,219.46,8.72978864]
[1734488810104,8.72978864,219.58,219.44,4.2116]
[1734488810508,1.5393,219.57,219.44,4.2116]
[1734488810703,2.2778,219.5,219.44,6.49]
[1734488810907,11.44978864,219.55,219.4,8.72978864]
[1734488811111,8.72978864,219.52,219.4,2.72]
[1734488811307,8.72978864,219.52,219.38,8.26422761]
[1734488811810,2.2781,219.47,219.41,2.2787]
[1734488812305,2.2783,219.45,219.39,2.2788]
[1734488812514,2.72,219.5,219.33,1.4916]
[1734488812515,8.72978864,219.49,219.33,1.4916]
[1734488812911,1.5393,219.48,219.33,1.4916]
[1734488813307,1.5393,219.48,219.37,2.279]
[1734488813510,1.5393,219.48,219.33,1.4916]
[1734488813812,1.5393,219.48,219.36,2.2792]
[1734488813813,2.2786,219.43,219.36,2.2792]
[1734488814014,2.2786,219.43,219.33,1.4916]
[1734488814217,2.72,219.45,219.33,1.4916]
[1734488814616,2.72,219.45,219.35,5.51875862]
[1734488815007,4.2593,219.48,219.35,14.24854726]
[1734488815215,4.2593,219.48,219.38,8.72978864]
[1734488815512,4.2593,219.48,219.41,8.72978864]
[1734488815513,1.5393,219.48,219.41,8.72978864]
[1734488815712,2.72,219.52,219.41,8.72978864]
[1734488815713,2.2776,219.52,219.41,8.72978864]
[1734488816111,2.72,219.53,219.41,8.72978864]
[1734488816914,1.5338,219.54,219.41,8.72978864]
[1734488817813,2.2774,219.53,219.41,8.72978864]
[1734488818215,2.2774,219.53,219.46,2.2781]
[1734488818512,3.8111,219.54,219.43,2.72]
[1734488818716,3.8111,219.54,219.44,8.72978864]
[1734488819112,3.8111,219.54,219.47,2.278]
[1734488820010,1.5338,219.54,219.45,2.2782]
[1734488820217,1.5338,219.54,219.43,2.72]
[1734488820917,1.5338,219.54,219.44,8.72978864]
[1734488822515,2.2775,219.53,219.47,2.278]
[1734488822717,1.5232,219.56,219.44,8.72978864]
[1734488822918,1.5232,219.56,219.47,8.72978864]
[1734488823121,2.2769,219.59,219.48,2.72]
[1734488823312,2.2769,219.59,219.5,8.72978864]
[1734488824519,1.5326,219.62,219.5,8.72978864]
[1734488824726,2.72,219.64,219.53,8.72978864]
[1734488825016,8.72978864,219.68,219.53,11.44978864]
[1734488825218,2.2763,219.65,219.53,11.44978864]
[1734488825617,8.52568607,219.69,219.56,8.72978864]
[1734488825919,2.72,219.67,219.56,8.72978864]
[1734488826118,10.67012088,219.7,219.56,8.72978864]
[1734488826417,2.2758,219.69,219.59,8.72978864]
[1734488826623,9.10477864,219.71,219.58,2.72]
[1734488827018,19.78388963,219.71,219.58,2.72]
[1734488827421,19.78388963,219.71,219.59,2.2768]
[1734488827721,19.78388963,219.71,219.57,1.4993]
[1734488828117,2.276,219.68,219.57,1.4993]
[1734488828323,0.37499,219.71,219.59,8.72978864]
[1734488828518,0.37499,219.71,219.59,11.44978864]
[1734488828722,2.2757,219.7,219.59,11.44978864]
[1734488829015,0.37499,219.71,219.59,11.44978864]
[1734488829215,0.37499,219.71,219.62,8.72978864]
[1734488829820,0.37499,219.71,219.68,8.72978864]
[1734488830216,2.72,219.8,219.69,1.5556]
[1734488830415,20.41568978,219.8,219.69,1.5556]
[1734488830619,10.71887012,219.79,219.69,1.5556]
[1734488830824,10.71887012,219.78,219.69,1.5556]
[1734488831123,10.71887012,219.77,219.69,1.5556]
[1734488831527,10.71887012,219.76,219.71,8.72978864]
[1734488831820,2.72,219.85,219.72,2.72]
[1734488832022,1.5561,219.85,219.72,2.72]
[1734488832218,2.2747,219.8,219.72,4.9954]
[1734488832420,2.72,219.84,219.72,2.72]
[1734488832722,17.70577885,219.84,219.74,8.72978864]
[1734488832919,17.70577885,219.83,219.74,8.72978864]
[1734488833120,10.72567667,219.82,219.76,2.275]
[1734488833418,10.24308864,219.91,219.7,1.5022]
[1734488833419,10.72567667,219.81,219.77,11.44978864]
[1734488833619,8.72978864,219.93,219.78,2.72]
[1734488833620,2.72,219.92,219.78,2.72]
[1734488833826,20.44354782,219.92,219.78,2.72]
[1734488834027,17.72354782,219.91,219.78,2.72]
[1734488834224,2.274,219.86,219.78,2.72]
[1734488835028,6.98687891,219.9,219.81,2.2745]
[1734488835029,2.2737,219.89,219.81,2.2745]
[1734488835230,9.26057891,219.89,219.81,2.2745]
[1734488835526,2.2737,219.89,219.81,2.2745]
[1734488836120,10.73666891,219.92,219.83,8.72978864]
[1734488836325,10.73666891,219.91,219.86,8.72978864]
[1734488836526,3.0777,219.98,219.86,8.72978864]
[1734488836821,6.98465015,219.99,219.86,8.72978864]
[1734488837023,23.07144791,220.0,219.86,8.72978864]
[1734488837228,17.71833273,219.99,219.86,8.72978864]
[1734488837522,2.2731,219.95,219.86,8.72978864]
[1734488837723,6.98465015,219.98,219.89,8.72978864]
[1734488837925,9.25745015,219.98,219.9,2.2736]
[1734488838226,2.2728,219.98,219.9,2.2736]
[1734488839118,10.73368258,220.01,219.89,2.7]
[1734488839720,10.73368258,220.01,219.88,2.2738]
[1734488839926,10.73368258,220.01,219.87,13.85974624]
[1734488840224,2.2734,219.92,219.83,13.85974624]
[1734488840422,2.7,219.97,219.84,2.7]
[1734488840623,2.9532,219.96,219.84,2.7]
[1734488840827,2.2736,219.9,219.84,2.7]
[1734488841031,2.2736,219.9,219.83,2.2743]
[1734488841331,1.4709,219.96,219.83,2.2743]
[1734488841529,19.17684317,219.96,219.83,2.2743]
[1734488841729,2.2735,219.91,219.83,2.2743]
[1734488842132,13.00688258,219.94,219.83,13.85974624]
[1734488842329,2.7,219.98,219.83,13.85974624]
[1734488842834,2.2733,219.93,219.85,2.2741]
[1734488843032,17.6446904,219.99,219.83,13.85974624]
[1734488843228,10.68911718,219.99,219.83,15.44054624]
[1734488843433,2.2732,219.94,219.87,2.2739]
[1734488843736,10.68911718,219.97,219.87,2.7]
[1734488843926,10.68911718,219.96,219.84,2.7]
[1734488844125,4.1932,220.0,219.84,2.7]
[1734488844126,2.2736,219.9,219.84,2.7]
[1734488844325,20.33844015,219.99,219.84,2.7]
[1734488844630,2.273,219.97,219.89,2.2737]
[1734488844829,6.94970737,219.97,219.89,2.2737]
[1734488845026,17.63882455,219.98,219.84,2.7]
[1734488845230,6.94970737,219.97,219.84,2.7]
[1734488845728,10.68911718,219.98,219.89,2.2737]
[1734488846033,10.68911718,219.97,219.89,2.7]
[1734488846236,10.68911718,219.96,219.89,2.7]
[1734488846434,186.48949424,220.02,219.89,2.7]
[1734488846632,17.61910033,220.01,219.94,2.2732]
[1734488846830,6.94544125,220.0,219.91,13.85974624]
[1734488847332,10.67365908,220.01,219.91,13.85974624]
[1734488847631,10.67365908,220.01,219.94,2.2732]
[1734488849437,12.94615908,220.01,219.94,2.2732]
[1734488849636,10.67365908,220.01,219.92,1.5469]
[1734488849842,10.67365908,220.01,219.61,1.98953997]
[1734488850035,6.93445001,220.0,219.88,2.7]
[1734488850442,2.2731,219.95,219.88,4.9738]
[1734488850833,2.2731,219.95,219.88,2.2738]
[1734488851433,2.2733,219.94,219.86,2.2739]
[1734488851842,10.67365908,219.94,219.85,2.7]
[1734488852036,10.67365908,219.93,219.85,2.274]
[1734488852235,2.7,219.99,219.85,2.274]
[1734488852835,13.36100296,219.99,219.82,1.5469]
[1734488853041,31.4584238,219.98,219.82,1.5469]
[1734488853237,17.59867756,219.97,219.82,1.5469]
[1734488853543,10.66100296,219.97,219.82,1.5469]
[1734488853743,2.2736,219.9,219.84,2.2742]
[1734488855249,2.7,219.92,219.84,2.2742]
[1734488855445,2.7,219.92,219.82,1.5469]
[1734488855645,2.7,219.92,219.83,2.2743]
[1734488855944,2.7,219.92,219.82,1.5469]
[1734488856344,10.66100296,219.92,219.83,16.55974624]
[1734488856545,1.5242,219.94,219.83,16.55974624]
[1734488857151,1.5242,219.94,219.89,2.2737]
[1734488857547,2.2732,219.95,219.89,2.2737]
[1734488859353,2.2732,219.94,219.89,2.2737]
[1734488860952,17.64200612,219.98,219.85,8.66599745]
[1734488861151,6.96559687,219.97,219.83,2.7]
[1734488861460,44.93882306,219.97,219.83,2.7]
[1734488861656,24.5564265,219.96,219.83,2.7]
[1734488861856,24.56123493,219.95,219.83,2.7]
[1734488862058,20.34200612,219.94,219.83,2.7]
[1734488862360,2.274,219.87,219.82,8.66599745]
[1734488862554,6.96559687,219.92,219.79,8.66599745]
[1734488862857,165.44623878,219.92,219.79,14.12878141]
[1734488863161,26.01669244,219.91,219.79,14.12878141]
[1734488863360,8.66599745,219.89,219.76,8.66599745]
[1734488863563,154.25455559,219.88,219.76,8.66599745]
[1734488863858,2.2743,219.83,219.75,2.2751]
[1734488864160,176.12549947,219.87,219.75,2.2751]
[1734488864161,24.57185972,219.86,219.75,2.2751]
[1734488864361,17.64200612,219.85,219.75,2.2751]
[1734488864558,17.64200612,219.84,219.75,2.2751]
[1734488864758,17.64200612,219.83,219.75,2.2751]
[1734488865059,2.2747,219.8,219.73,8.66599745]
[1734488865455,9.24029687,219.8,219.73,8.66599745]
[1734488865655,2.2747,219.8,219.73,8.66599745]
[1734488865861,2.2748,219.79,219.73,8.66599745]
[1734488866562,2.2748,219.79,219.74,5.40259502]
[1734488867556,2.2748,219.79,219.74,7.67779502]
[1734488868560,12.95120925,219.79,219.74,7.67779502]
[1734488868761,10.67640925,219.78,219.74,7.67779502]
[1734488868956,2.2748,219.79,219.74,7.67779502]
[1734488869654,2.7,219.83,219.74,5.40259502]
[1734488870262,20.49801276,219.83,219.74,5.40259502]
[1734488870464,2.2747,219.79,219.74,7.67789502]
[1734488871261,2.2747,219.79,219.74,7.67779502]
[1734488873666,13.05635068,219.79,219.74,7.67779502]
[1734488873863,17.79801276,219.78,219.74,7.67779502]
[1734488874062,17.79801276,219.77,219.74,7.67779502]
[1734488874263,17.79801276,219.76,219.7,8.66599745]
[1734488874566,17.79801276,219.75,219.7,8.66599745]
[1734488874762,1.4648,219.82,219.67,8.66599745]
[1734488874763,17.79801276,219.74,219.67,8.66599745]
[1734488875066,17.79801276,219.73,219.67,8.66599745]
[1734488875268,2.7,219.78,219.67,8.66599745]
[1734488875269,17.79801276,219.72,219.67,8.66599745]
[1734488875466,20.07361276,219.71,219.67,8.66599745]
[1734488875767,17.79801276,219.7,219.64,5.59652656]
[1734488875966,2.276,219.67,219.61,8.66599745]
[1734488876166,17.79801276,219.68,219.61,8.66599745]
[1734488876465,2.2761,219.66,219.61,8.66599745]
[1734488876767,20.07411276,219.66,219.61,8.66599745]
[1734488876970,17.84235957,219.65,219.61,8.66599745]
[1734488877162,10.78165068,219.64,219.61,8.66599745]
[1734488877360,10.78165068,219.63,219.61,8.66599745]
[1734488877569,2.2761,219.66,219.61,8.66599745]
[1734488878170,2.2761,219.66,219.6,2.2767]
[1734488878371,2.2763,219.65,219.58,10.94279745]
[1734488878565,10.84244067,219.68,219.58,10.94279745]
[1734488878762,7.05642704,219.67,219.58,10.94279745]
[1734488878962,17.89886771,219.67,219.58,10.94279745]
[1734488879169,17.89886771,219.66,219.58,10.94279745]
[1734488879464,1.4648,219.72,219.58,10.94279745]
[1734488879465,20.17506771,219.65,219.58,10.94279745]
[1734488879667,7.05642704,219.64,219.58,10.94279745]
[1734488879868,2.2762,219.65,219.6,5.58045588]
[1734488882476,2.2763,219.64,219.59,2.2768]
[1734488882666,10.84244067,219.66,219.58,10.94279745]
[1734488882866,2.7,219.68,219.58,10.94279745]
[1734488882867,10.84244067,219.65,219.58,10.94279745]
[1734488883069,2.2762,219.65,219.59,2.2768]
[1734488883667,2.7,219.68,219.59,2.2768]
[1734488883668,2.2763,219.64,219.59,2.2768]
[1734488883967,2.2763,219.64,219.59,7.81508615]
[1734488885373,17.81385955,219.67,219.59,5.53828615]
[1734488885569,2.7,219.68,219.59,5.53828615]
[1734488885767,4.9759,219.68,219.62,2.2764]
[1734488886477,4.9759,219.68,219.59,5.53828615]
[1734488886478,2.7,219.68,219.6,2.2766]
[1734488886873,2.7,219.68,219.59,5.53828615]
[1734488887171,1.4648,219.72,219.61,8.66599745]
[1734488887478,8.48055209,219.72,219.61,11.36599745]
[1734488887667,1.4648,219.72,219.61,11.36599745]
[1734488887867,8.48055209,219.72,219.64,8.66599745]
[1734488888073,1.4648,219.72,219.64,8.66599745]
[1734488888376,2.2753,219.74,219.68,2.2759]
[1734488888572,2.7,219.75,219.68,2.2759]
[1734488889377,1.5062,219.78,219.62,1.5486]
[1734488889378,4.2062,219.78,219.67,8.66599745]
[1734488889578,1.5062,219.78,219.71,8.66599745]
[1734488889777,3.7811,219.78,219.73,2.2753]
[1734488890371,1.5062,219.78,219.68,8.66599745]
[1734488890573,2.275,219.77,219.71,2.2755]
[1734488891775,13.0556933,219.8,219.75,2.2751]
[1734488891976,2.2746,219.8,219.75,2.2751]
[1734488892578,2.7,219.82,219.76,2.275]
[1734488892778,20.50668045,219.82,219.76,2.275]
[1734488892981,10.78618341,219.81,219.76,2.275]
[1734488893178,2.7,219.85,219.72,2.7]
[1734488893376,20.51545748,219.85,219.72,4.1757]
[1734488893572,17.81545748,219.84,219.72,4.1757]
[1734488893776,9.29759531,219.83,219.75,2.2751]
[1734488893976,7.02329531,219.83,219.72,4.1757]
[1734488894176,7.02329531,219.83,219.72,1.4757]
[1734488894389,2.2747,219.79,219.73,2.2753]
[1734488894675,2.2747,219.79,219.69,8.66599745]
[1734488895071,2.2748,219.79,219.69,8.66599745]
[1734488895271,7.02329531,219.83,219.69,8.66599745]
[1734488896174,2.2745,219.81,219.75,2.2751]
[1734488896472,7.02329531,219.83,219.72,8.66599745]
[1734488896678,2.2745,219.81,219.75,2.2751]
[1734488897077,14.00860709,219.83,219.73,2.7]
[1734488897278,13.06656217,219.82,219.76,2.275]
[1734488897473,13.06656217,219.82,219.73,2.7]
[1734488897474,7.02329531,219.81,219.73,2.7]
[1734488897677,17.81545748,219.81,219.73,2.7]
[1734488897882,17.81545748,219.8,219.73,2.7]
[1734488898077,17.81545748,219.79,219.73,2.7]
[1734488898382,10.79216217,219.78,219.73,2.7]
[1734488898582,10.79216217,219.77,219.73,2.7]
[1734488898782,2.2744,219.82,219.73,2.7]
[1734488899582,27.12403055,219.82,219.76,2.275]
[1734488899784,17.86048308,219.81,219.76,2.275]
[1734488899978,2.2744,219.82,219.76,2.275]
[1734488899979,17.86048308,219.8,219.76,2.275]
[1734488900186,17.86288733,219.79,219.76,2.275]
[1734488900379,10.81950288,219.78,219.76,2.275]
[1734488900579,2.2746,219.81,219.76,2.275]
[1734488900979,24.85887978,219.84,219.72,8.66599745]
[1734488901183,24.85887978,219.83,219.72,11.36599745]
[1734488901382,7.04360429,219.82,219.72,11.36599745]
[1734488901586,24.85887978,219.82,219.72,11.36599745]
[1734488901783,17.86714213,219.81,219.72,11.36599745]
[1734488901983,17.86714213,219.8,219.72,11.36599745]
[1734488902285,17.86714213,219.79,219.72,11.36599745]
[1734488902485,17.86714213,219.78,219.74,2.2753]
[1734488902675,10.82353784,219.77,219.74,2.2753]
[1734488902880,2.2748,219.79,219.74,2.2753]
[1734488904186,2.2748,219.79,219.72,11.36599745]
[1734488904187,27.58753216,219.8,219.7,5.51921325]
[1734488904388,24.88753216,219.79,219.7,5.51921325]
[1734488904588,17.88256572,219.78,219.7,5.51921325]
[1734488904779,17.88256572,219.77,219.7,5.51921325]
[1734488904985,2.2752,219.75,219.71,2.2755]
[1734488905289,20.15776572,219.75,219.71,2.2755]
[1734488905487,20.15776572,219.75,219.7,5.51921325]
[1734488905488,17.88256572,219.74,219.7,5.51921325]
[1734488905688,10.83287554,219.73,219.7,5.51921325]
[1734488905879,242.48728895,219.92,219.72,17.3319949]
[1734488906079,242.48728895,219.92,219.71,2.7]
[1734488906080,5.59297031,220.06,219.86,8.66599745]
[1734488906281,2.7,220.08,219.94,8.66599745]
[1734488906480,8.66599745,220.01,219.87,2.7]
[1734488906684,7.1739,220.0,219.85,8.66599745]
[1734488906984,2.2728,219.98,219.87,2.2739]
[1734488907186,7.06506641,219.99,219.85,8.66599745]
[1734488907381,2.7,219.98,219.85,8.66599745]
[1734488907784,9.76506641,219.98,219.87,5.50848305]
[1734488907986,7.06506641,219.97,219.87,5.50848305]
[1734488908190,2.2729,219.97,219.87,5.50848305]
[1734488908885,2.7,219.98,219.87,7.78238305]
[1734488910287,2.2733,219.93,219.85,8.66599745]
[1734488910493,2.7,219.93,219.82,8.66599745]
[1734488911793,2.7,219.93,219.84,5.38581258]
[1734488912383,2.2735,219.92,219.84,5.38581258]
[1734488913385,2.2735,219.92,219.84,7.66001258]
[1734488914087,2.2735,219.92,219.85,2.2741]
[1734488914088,2.68,219.92,219.85,2.2741]
[1734488914390,2.68,219.92,219.85,8.66599745]
[1734488914789,2.2731,219.95,219.87,2.2739]
[1734488914989,2.2731,219.95,219.85,8.66599745]
[1734488915185,2.68,219.95,219.85,8.66599745]
[1734488915385,2.68,219.95,219.88,8.66599745]
[1734488916390,2.68,219.95,219.89,2.2737]
[1734488916595,4.953,219.96,219.89,2.2737]
[1734488916794,2.273,219.96,219.89,2.2737]
[1734488916995,4.953,219.96,219.89,2.2737]
[1734488918392,2.273,219.96,219.89,2.2737]
[1734488918596,2.68,219.95,219.88,8.66599745]
[1734488918785,2.68,219.96,219.88,10.93969745]
[1734488919686,2.2731,219.96,219.89,2.2737]
[1734488920097,2.68,219.98,219.88,8.66599745]
[1734488920295,2.68,219.98,219.93,2.2733]
[1734488921098,2.2727,219.99,219.93,2.2733]
[1734488921298,4.9527,219.99,219.93,2.2733]
[1734488923194,4.4739,220.0,219.95,2.273]
[1734488923394,2.2724,220.02,219.95,2.273]
[1734488923395,2.68,220.01,219.95,2.273]
[1734488923596,2.2724,220.02,219.91,8.66599745]
[1734488923798,4.9524,220.02,219.96,2.273]
[1734488924597,2.2724,220.02,219.96,2.273]
[1734488925401,2.2724,220.02,219.94,8.66599745]
[1734488925402,2.68,220.03,219.94,8.66599745]
[1734488926004,2.2725,220.01,219.96,2.273]
[1734488926204,2.2725,220.01,219.94,8.66599745]
[1734488926501,2.68,220.04,219.94,8.66599745]
[1734488926698,2.2723,220.03,219.98,2.2727]
[1734488926900,2.2723,220.03,219.94,8.66599745]
[1734488927206,5.6291,220.06,220.0,2.2725]
[1734488928005,5.6291,220.06,219.97,8.66599745]
[1734488928305,7.9011,220.06,220.01,2.2724]
[1734488928506,5.2211,220.06,220.01,2.2724]
[1734488930905,2.2721,220.05,220.01,2.2724]
[1734488931104,2.9491,220.06,220.01,2.2724]
[1734488931506,5.2211,220.06,220.01,2.2724]
[1734488931707,2.9491,220.06,220.01,2.2724]
[1734488932009,2.9491,220.06,219.97,8.66599745]
[1734488932606,2.2721,220.05,220.0,2.2725]
[1734488935211,2.2721,220.05,220.01,2.2724]
[1734488935710,2.9491,220.06,220.0,2.2726]
[1734488935711,2.2722,220.04,220.0,2.2726]
[1734488937102,2.9491,220.06,219.98,2.2727]
[1734488938211,2.9491,220.06,219.97,8.66599745]
[1734488938410,2.2723,220.03,219.99,2.2726]
[1734488938611,2.9491,220.06,219.97,8.66599745]
[1734488938910,2.2724,220.03,219.98,2.2728]
[1734488942007,2.2724,220.03,220.01,5.54016792]
[1734488942205,2.2724,220.03,219.98,2.2728]
[1734488942413,2.2724,220.03,220.0,5.54016792]
[1734488944418,7.05030614,220.07,220.02,5.54016792]
[1734488944612,11.18130614,220.09,220.04,5.54016792]
[1734488944813,7.0537148,220.08,220.04,5.54016792]
[1734488945012,4.131,220.09,220.04,5.54016792]
[1734488945215,1.451,220.09,220.04,5.54016792]
[1734488945810,1.451,220.09,219.98,2.68]
[1734488946111,1.451,220.09,220.02,5.54016792]
[1734488947418,2.272,220.06,220.02,5.54016792]
[1734488948121,5.54016792,220.07,219.99,2.2726]
[1734488948314,5.54016792,220.07,219.99,5.54016792]
[1734488948619,12.59388272,220.07,219.99,5.54016792]
[1734488948815,5.54016792,220.07,219.99,5.54016792]
[1734488949312,22.64165137,220.07,219.99,5.54016792]
[1734488949512,2.2723,220.03,219.99,7.81286792]
[1734488950514,17.10148345,220.04,219.99,7.81286792]
[1734488950713,2.2724,220.02,219.99,7.81286792]
[1734488950920,9.3261148,220.02,219.99,7.81286792]
[1734488951121,2.2724,220.02,219.99,7.81286792]
[1734488953625,7.0537148,220.07,219.95,6.85310995]
[1734488953821,2.2725,220.01,220.0,5.54016792]
[1734488955521,2.2725,220.01,219.98,5.54016792]
[1734488955828,2.68,220.05,219.98,5.54016792]
[1734488956018,2.68,220.05,220.0,5.54016792]
[1734488956221,19.79991122,220.05,220.0,5.54016792]
[1734488956419,17.11991122,220.04,220.0,5.54016792]
[1734488956617,7.0537148,220.03,220.0,5.54016792]
[1734488957023,7.0537148,220.03,219.91,2.68]
[1734488957230,7.0537148,220.03,219.97,7.81306792]
[1734488957419,7.0537148,220.03,219.97,5.54016792]
[1734488957826,9.3260148,220.03,219.98,2.2727]
[1734488958024,7.0537148,220.03,220.01,5.54016792]
[1734488959931,7.0537148,220.03,219.93,2.68]
[1734488960131,7.0537148,220.03,219.97,5.54016792]
[1734488960328,2.2724,220.02,219.97,7.81296792]
[1734488960732,2.2725,220.01,219.97,5.54016792]
[1734488960929,2.2725,220.01,219.96,7.81316792]
[1734488962835,2.2725,220.01,219.97,2.2729]
[1734488963036,2.2725,220.01,219.96,5.54016792]
[1734488963237,2.2726,220.0,219.9,1.5203]
[1734488963438,7.0537148,220.03,219.96,5.54016792]
[1734488964142,2.2728,219.99,219.96,5.54016792]
[1734488964838,2.68,220.0,219.89,1.4641]
[1734488965039,2.2731,219.95,219.91,5.54016792]
[1734488965534,2.273,219.97,219.92,2.2734]
[1734488965936,7.0537148,219.97,219.86,2.68]
[1734488966136,2.2731,219.96,219.91,5.54016792]
[1734488966337,7.0537148,219.97,219.91,5.54016792]
[1734488966530,7.0537148,219.97,219.89,5.54016792]
[1734488966938,2.2733,219.94,219.89,7.81386792]
[1734488967343,2.2733,219.94,219.89,2.2737]
[1734488967739,2.2733,219.94,219.89,7.81386792]
[1734488969036,17.11991122,219.96,219.91,5.54016792]
[1734488969343,17.11991122,219.95,219.86,8.15965944]
[1734488969537,17.11991122,219.94,219.93,2.2733]
[1734488969733,7.0537148,219.94,219.93,2.2733]
[1734488969933,17.26118314,219.99,219.86,8.15965944]
[1734488970136,7.0537148,219.98,219.94,5.54016792]
[1734488970532,7.0537148,219.98,219.94,7.81326792]
[1734488971438,17.26118314,219.98,219.94,7.81326792]
[1734488971639,17.26118314,219.97,219.94,7.81326792]
[1734488971841,17.26118314,219.96,219.94,2.2731]
[1734488972133,17.26118314,219.95,219.94,2.2731]
[1734488972334,7.0537148,219.95,219.94,2.2731]
[1734488972641,9.3264148,219.99,219.94,2.2731]
[1734488974641,2.2729,219.97,219.92,2.2733]
[1734488974941,2.2729,219.97,219.92,5.54016792]
[1734488975340,2.273,219.96,219.91,2.2734]
[1734488975643,17.26118314,219.98,219.9,5.54016792]
[1734488975644,12.59388272,219.97,219.9,5.54016792]
[1734488975840,10.20746834,219.96,219.9,5.54016792]
[1734488976038,9.3269148,219.95,219.9,5.54016792]
[1734488976637,2.2733,219.93,219.88,5.54016792]
[1734488976840,7.0537148,219.95,219.88,5.54016792]
[1734488978644,2.2733,219.93,219.89,7.81386792]
[1734488979246,2.2733,219.93,219.89,2.2737]
[1734488979444,2.2733,219.93,219.89,5.54016792]
[1734488980346,2.2733,219.93,219.88,2.2738]